[Event "Bionext Festival 2019"]
[Site "Chihuahua"]
[Date "2019.11.30"]
[Round "3.2"]
[White "Ortiz Suarez, Isan Reynaldo"]
[Black "Corrales Jimenez, Zenia"]
[Result "1-0"]
[ECO "D77"]
[WhiteElo "2549"]
[BlackElo "2219"]
[Annotator "ChessBase"]
[PlyCount "77"]
[EventDate "2019.11.30"]
[EventType "swiss"]
[EventCountry "MEX"]
[SourceTitle "playchess.com"]
[Source "ChessBase"]
[SourceQuality "1"]
[TimeControl "5400+30"]

1. Nf3 {[%emt 0:00:00]} Nf6 {[%emt 0:00:01]} 2. c4 {[%emt 0:00:00]} g6 {[%emt 0:00:28]} 3. g3 {[%emt 0:00:00]} Bg7 {[%emt 0:00:30]} 4. Bg2 {[%emt 0:00:03]} O-O {[%emt 0:00:34]} 5. d4 {[%emt 0:00:08]} d5 {[%emt 0:00:49]} 6. O-O {[%emt 0:00:24]} dxc4 {[%emt 0:00:55]} 7. Na3 {[%emt 0:00:07]} Nc6 {[%emt 0:00:57]} 8. Nxc4 {[%emt 0:01:32]} Be6 {[%emt 0:00:26]} 9. b3 {[%emt 0:01:08]} Bd5 {[%emt 0:02:14]} 10. Bb2 {[%emt 0:00:44]} a5 {[%emt 0:00:11]} 11. Rc1 {[%emt 0:03:15]} Re8 {[%emt 0:08:35]} 12. e3 {[%emt 0:01:29]} Ne4 {[%emt 0:08:40]} 13. a3 {[%emt 0:04:57]} e6 {[%emt 0:07:44]} 14. Qc2 {[%emt 0:00:51]} Ng5 {[%emt 0:02:38]} 15. Ncd2 {[%emt 0:03:18]} Nxf3+ {[%emt 0:01:05]} 16. Nxf3 {[%emt 0:00:06]} f5 {[%emt 0:03:08]} 17. Rfd1 {[%emt 0:01:50]} a4 {[%emt 0:10:33]} 18. bxa4 {[%emt 0:02:25]} Be4 {[%emt 0:00:13]} 19. Qc4 {[%emt 0:05:33]} Qd5 {[%emt 0:09:53]} 20. Ne1 {[%emt 0:01:17]} Bxg2 {[%emt 0:04:00]} 21. Nxg2 {[%emt 0:00:07]} Qxc4 {[%emt 0:00:10]} 22. Rxc4 {[%emt 0:00:08]} e5 {[%emt 0:02:28]} 23. d5 {[%emt 0:03:58]} Red8 {[%emt 0:00:26]} 24. Rcc1 {[%emt 0:01:03]} Ne7 {[%emt 0:00:18]} 25. Rxc7 {[%emt 0:00:27]} Nxd5 {[%emt 0:02:25]} 26. Rxb7 {[%emt 0:00:24]} Rdb8 {[%emt 0:02:56]} 27. Rxg7+ {[%emt 0:00:34]} Kxg7 {[%emt 0:00:19]} 28. Bxe5+ {[%emt 0:00:07]} Kf7 {[%emt 0:00:06]} 29. Bxb8 {[%emt 0:00:16]} Rxb8 {[%emt 0:00:26]} 30. Rxd5 {[%emt 0:00:13]} Rb1+ {[%emt 0:00:09]} 31. Ne1 {[%emt 0:00:04]} Rxe1+ {[%emt 0:00:05]} 32. Kg2 {[%emt 0:00:02]} Ke6 {[%emt 0:01:13]} 33. Rb5 {[%emt 0:02:02]} Ra1 {[%emt 0:02:41]} 34. Rb3 {[%emt 0:00:06]} Rc1 {[%emt 0:00:29]} 35. Rb7 {[%emt 0:02:47]} h6 {[%emt 0:02:02]} 36. h4 {[%emt 0:00:45]} Rc4 {[%emt 0:00:39]} 37. Rb4 {[%emt 0:00:46]} Rc3 {[%emt 0:00:09]} 38. Rb6+ {[%emt 0:00:05]} Kf7 {[%emt 0:00:05]} 39. h5 {[%emt 0:00:10]} 1-0

[Event "Bionext Festival 2019"]
[Site "Chihuahua"]
[Date "2019.11.30"]
[Round "3.3"]
[White "Gomez, Zuniga David Fernand"]
[Black "Cuenca Jimenez, Jose Fernando"]
[Result "0-1"]
[ECO "E63"]
[WhiteElo "2078"]
[BlackElo "2523"]
[Annotator "ChessBase"]
[PlyCount "82"]
[EventDate "2019.11.30"]
[EventType "swiss"]
[EventCountry "MEX"]
[SourceTitle "playchess.com"]
[Source "ChessBase"]
[SourceQuality "1"]
[TimeControl "5400+30"]

1. d4 {[%emt 0:00:00]} Nf6 {[%emt 0:04:49]} 2. c4 {[%emt 0:00:00]} g6 {[%emt 0:00:45]} 3. Nf3 {[%emt 0:00:00]} Bg7 {[%emt 0:00:05]} 4. g3 {[%emt 0:00:00]} O-O {[%emt 0:00:10]} 5. Bg2 {[%emt 0:00:19]} d6 {[%emt 0:00:07]} 6. Nc3 {[%emt 0:00:08]} Nc6 {[%emt 0:00:27]} 7. O-O {[%emt 0:00:09]} a6 {[%emt 0:00:24]} 8. Qd3 {[%emt 0:00:10]} Nd7 {[%emt 0:03:52]} 9. Be3 {[%emt 0:00:06]} e5 {[%emt 0:00:52]} 10. d5 {[%emt 0:05:41]} Ne7 {[%emt 0:01:17]} 11. Bd2 {[%emt 0:20:17]} f5 {[%emt 0:05:01]} 12. e4 {[%emt 0:02:53]} Nc5 {[%emt 0:01:10]} 13. Qc2 {[%emt 0:01:46]} a5 {[%emt 0:05:07]} 14. Be3 {[%emt 0:05:43]} b6 {[%emt 0:06:47]} 15. a3 {[%emt 0:05:45]} fxe4 {[%emt 0:07:07]} 16. Ng5 {[%emt 0:04:20]} Nf5 {[%emt 0:03:12]} 17. Ngxe4 {[%emt 0:04:29]} Nd4 {[%emt 0:04:06]} 18. Qd1 {[%emt 0:06:54]} Ncb3 {[%emt 0:15:35]} 19. Bxd4 {[%emt 0:00:39]} Nxd4 {[%emt 0:01:22]} 20. Nb5 {[%emt 0:03:26]} Bf5 {[%emt 0:02:25]} 21. Nxd4 {[%emt 0:00:48]} exd4 {[%emt 0:02:09]} 22. Qd3 {[%emt 0:01:01]} a4 {[%emt 0:02:04]} 23. Rae1 {[%emt 0:02:26]} Qd7 {[%emt 0:03:40]} 24. h3 {[%emt 0:02:53]} g5 {[%emt 0:05:58]} 25. g4 {[%emt 0:03:15]} Bg6 {[%emt 0:00:59]} 26. Qd2 {[%emt 0:00:06]} h6 {[%emt 0:01:04]} 27. Ng3 {[%emt 0:00:10]} Rae8 {[%emt 0:06:46]} 28. Be4 {[%emt 0:02:14]} Bxe4 {[%emt 0:00:05]} 29. Rxe4 {[%emt 0:00:32]} Rxe4 {[%emt 0:04:20]} 30. Nxe4 {[%emt 0:00:03]} Be5 {[%emt 0:00:08]} 31. Qd3 {[%emt 0:01:13]} Qf7 {[%emt 0:00:59]} 32. Ng3 {[%emt 0:04:29]} Bxg3 {[%emt 0:02:46]} 33. fxg3 {[%emt 0:11:03]} Qxf1+ {[%emt 0:01:18]} 34. Qxf1 {[%emt 0:00:02]} Rxf1+ {[%emt 0:00:06]} 35. Kxf1 {[%emt 0:00:04]} Kf7 {[%emt 0:00:05]} 36. Ke2 {[%emt 0:00:10]} Kf6 {[%emt 0:00:05]} 37. Kd3 {[%emt 0:00:09]} Ke5 {[%emt 0:00:04]} 38. h4 {[%emt 0:00:18]} b5 {[%emt 0:00:14]} 39. cxb5 {[%emt 0:01:39]} Kxd5 {[%emt 0:00:11]} 40. b3 {[%emt 0:00:28]} axb3 {[%emt 0:00:11]} 41. a4 {[%emt 0:00:03]} Ke5 {[%emt 0:00:00] Kxd4+} 0-1

[Event "Bionext Festival 2019"]
[Site "Chihuahua"]
[Date "2019.11.30"]
[Round "3.4"]
[White "Macieja, Bartlomiej"]
[Black "Hernandez Moya, Yuleisy"]
[Result "1-0"]
[ECO "A86"]
[WhiteElo "2513"]
[BlackElo "2181"]
[Annotator "ChessBase"]
[PlyCount "93"]
[EventDate "2019.11.30"]
[EventType "swiss"]
[EventCountry "MEX"]
[SourceTitle "playchess.com"]
[Source "ChessBase"]
[SourceQuality "1"]
[TimeControl "5400+30"]

1. d4 {[%emt 0:00:00]} f5 {[%emt 0:00:00]} 2. c4 {[%emt 0:00:00]} Nf6 {[%emt 0:00:00]} 3. g3 {[%emt 0:00:00]} g6 {[%emt 0:00:00]} 4. Bg2 {[%emt 0:00:00]} Bg7 {[%emt 0:00:05]} 5. Nc3 {[%emt 0:00:00]} d6 {[%emt 0:00:27]} 6. Nh3 {[%emt 0:03:51]} c6 {[%emt 0:01:01]} 7. O-O {[%emt 0:00:26]} O-O {[%emt 0:02:43]} 8. d5 {[%emt 0:00:02]} e5 {[%emt 0:00:17]} 9. dxe6 {[%emt 0:00:05]} Bxe6 {[%emt 0:00:08]} 10. Qb3 {[%emt 0:00:12]} Qe7 {[%emt 0:10:14]} 11. Ng5 {[%emt 0:00:06]} Bf7 {[%emt 0:04:03]} 12. Bf4 {[%emt 0:17:49]} Na6 {[%emt 0:00:14]} 13. Nxf7 {[%emt 0:09:39]} Rxf7 {[%emt 0:00:07]} 14. Rad1 {[%emt 0:04:23]} Rd8 {[%emt 0:02:30]} 15. Qa3 {[%emt 0:16:13]} Nc5 {[%emt 0:07:46]} 16. Qxa7 {[%emt 0:01:51]} Nh5 {[%emt 0:08:19]} 17. Bc1 {[%emt 0:22:55]} f4 {[%emt 0:05:18]} 18. Bf3 {[%emt 0:00:07]} fxg3 {[%emt 0:00:21]} 19. hxg3 {[%emt 0:00:30]} Qe5 {[%emt 0:04:25]} 20. Kg2 {[%emt 0:01:11]} Rdf8 {[%emt 0:04:02]} 21. Qa3 {[%emt 0:02:31]} Bf6 {[%emt 0:06:00]} 22. Bh6 {[%emt 0:05:44]} Bg7 {[%emt 0:00:25]} 23. Be3 {[%emt 0:00:54]} Bf6 {[%emt 0:07:11]} 24. Rxd6 {[%emt 0:05:28]} Nxg3 {[%emt 0:07:58]} 25. Qxc5 {[%emt 0:04:08]} Nxf1 {[%emt 0:01:07]} 26. Kxf1 {[%emt 0:00:02]} Qxc5 {[%emt 0:00:58]} 27. Bxc5 {[%emt 0:00:01]} Be7 {[%emt 0:00:14]} 28. Ne4 {[%emt 0:00:41]} Bxd6 {[%emt 0:02:32]} 29. Nxd6 {[%emt 0:00:35]} Rc7 {[%emt 0:06:07]} 30. a4 {[%emt 0:00:20]} h5 {[%emt 0:02:56]} 31. a5 {[%emt 0:00:04]} Rd7 {[%emt 0:02:40]} 32. b4 {[%emt 0:01:16]} Rfd8 {[%emt 0:00:25]} 33. Nxb7 {[%emt 0:02:07]} Rxb7 {[%emt 0:00:50]} 34. Bxc6 {[%emt 0:00:02]} Rd1+ {[%emt 0:01:08]} 35. Kg2 {[%emt 0:00:00]} Rc7 {[%emt 0:01:16]} 36. Bd5+ {[%emt 0:01:25]} Kh7 {[%emt 0:00:04]} 37. Bb6 {[%emt 0:01:47]} Re7 {[%emt 0:01:19]} 38. e4 {[%emt 0:00:07]} g5 {[%emt 0:01:58]} 39. a6 {[%emt 0:00:10]} Ra1 {[%emt 0:01:04]} 40. b5 {[%emt 0:00:15]} g4 {[%emt 0:00:42]} 41. a7 {[%emt 0:02:10]} Rexa7 {[%emt 0:02:45]} 42. Bxa7 {[%emt 0:00:02]} Rxa7 {[%emt 0:00:10]} 43. b6 {[%emt 0:00:01]} Ra2 {[%emt 0:00:07]} 44. c5 {[%emt 0:00:14]} Rb2 {[%emt 0:00:05]} 45. c6 {[%emt 0:00:44]} h4 {[%emt 0:00:16]} 46. c7 {[%emt 0:00:14]} h3+ {[%emt 0:01:01]} 47. Kg3 {[%emt 0:00:03]} 1-0

[Event "Bionext Festival 2019"]
[Site "Chihuahua"]
[Date "2019.11.30"]
[Round "3.5"]
[White "Rose, Felix"]
[Black "Della Morte, Pablo"]
[Result "1-0"]
[ECO "B90"]
[WhiteElo "2059"]
[BlackElo "2309"]
[Annotator "NA"]
[PlyCount "123"]
[EventDate "2019.11.30"]
[EventType "swiss"]
[EventCountry "MEX"]
[SourceTitle "playchess.com"]
[Source "ChessBase"]
[SourceQuality "1"]
[TimeControl "5400+30"]

1. e4 {[%emt 1:30:30]} c5 {[%emt 0:06:38]} 2. Nf3 {[%emt 0:00:00]} d6 {[%emt 0:00:07]} 3. d4 {[%emt 0:00:00]} cxd4 {[%emt 0:00:06]} 4. Nxd4 {[%emt 0:00:00]} Nf6 {[%emt 0:00:07]} 5. Nc3 {[%emt 0:00:00]} a6 {[%emt 0:00:06]} 6. Be3 {[%emt 0:00:00]} e5 {[%emt 0:00:17]} 7. Nb3 {[%emt 0:00:00]} Be6 {[%emt 0:00:18]} 8. f3 {[%emt 0:00:00]} Nbd7 {[%emt 0:00:32]} 9. g4 {[%emt 0:00:00]} Nb6 {[%emt 0:02:58]} 10. g5 {[%emt 0:00:00]} Nh5 {[%emt 0:01:00]} 11. Qd2 {[%emt 0:00:00]} Rc8 {[%emt 0:03:31]} 12. O-O-O {[%emt 0:00:00]} Be7 {[%emt 0:00:12]} 13. Kb1 {[%emt 0:00:00]} O-O {[%emt 0:01:12]} 14. Rg1 {[%emt 0:00:00]} g6 {[%emt 0:03:49]} 15. Qf2 {[%emt 0:00:00]} Nc4 {[%emt 0:01:54]} 16. Bxc4 {[%emt 0:00:00]} Bxc4 {[%emt 0:07:56]} 17. Qd2 {[%emt 0:00:00]} Qc7 {[%emt 0:04:12]} 18. Rg2 {[%emt 0:00:00]} f6 {[%emt 0:07:33]} 19. Nd5 {[%emt 0:00:00]} Bxd5 {[%emt 0:00:07]} 20. Qxd5+ {[%emt 0:00:00]} Kh8 {[%emt 0:00:45]} 21. Rd3 {[%emt 0:00:00]} fxg5 {[%emt 0:19:22]} 22. Rc3 {[%emt 0:00:00]} Qd7 {[%emt 0:00:28]} 23. Rxc8 {[%emt 0:00:00]} Rxc8 {[%emt 0:00:15]} 24. Bxg5 {[%emt 0:00:00]} Bxg5 {[%emt 0:02:28]} 25. Rxg5 {[%emt 0:00:00]} Nf4 {[%emt 0:01:06]} 26. Qd2 {[%emt 0:00:00]} Qe7 {[%emt 0:07:16]} 27. Rg1 {[%emt 0:00:00]} Rf8 {[%emt 0:00:04]} 28. Rd1 {[%emt 0:00:00]} Rf6 {[%emt 0:00:04]} 29. Nc1 {[%emt 0:00:00]} Qf7 {[%emt 0:07:50]} 30. b3 {[%emt 0:00:00]} Nh3 {[%emt 0:01:49]} 31. a4 {[%emt 0:00:00]} Qc7 {[%emt 0:02:20]} 32. Na2 {[%emt 0:00:00]} Qc5 {[%emt 0:00:56]} 33. Nb4 {[%emt 0:00:53]} Qf2 {[%emt 0:09:33]} 34. Qc3 {[%emt 0:05:57]} Ng5 {[%emt 0:04:26]} 35. Qc8+ {[%emt 0:00:53]} Kg7 {[%emt 0:00:16]} 36. Qxb7+ {[%emt 0:00:09]} Rf7 {[%emt 0:00:53]} 37. Qxa6 {[%emt 0:00:53]} Qxf3 {[%emt 0:00:29]} 38. Qxd6 {[%emt 0:02:47]} Qxe4 {[%emt 0:00:11]} 39. Nc6 {[%emt 0:03:41]} Nf3 {[%emt 0:00:33]} 40. a5 {[%emt 0:00:34]} Rf6 {[%emt 0:01:26]} 41. Qd7+ {[%emt 0:01:59]} Kh6 {[%emt 0:01:47]} 42. Qh3+ {[%emt 0:00:11]} Kg5 {[%emt 0:00:22]} 43. Nd8 {[%emt 0:01:27]} Nd2+ {[%emt 0:00:30]} 44. Kc1 {[%emt 0:00:55]} h5 {[%emt 0:02:49]} 45. Qg3+ {[%emt 0:00:36]} Kh6 {[%emt 0:00:04]} 46. Rxd2 {[%emt 0:00:14]} Rf1+ {[%emt 0:00:15]} 47. Kb2 {[%emt 0:00:15]} Rf3 {[%emt 0:00:25]} 48. Qg2 {[%emt 0:00:47]} Qf5 {[%emt 0:01:18]} 49. h4 {[%emt 0:01:02]} e4 {[%emt 0:00:49]} 50. Qg5+ {[%emt 0:00:34]} Qxg5 {[%emt 0:00:08]} 51. hxg5+ {[%emt 0:00:03]} Kxg5 {[%emt 0:00:04]} 52. a6 {[%emt 0:00:28]} e3 {[%emt 0:00:06]} 53. Re2 {[%emt 0:00:23]} Rf6 {[%emt 0:00:36]} 54. a7 {[%emt 0:00:10]} Ra6 {[%emt 0:00:07]} 55. Nc6 {[%emt 0:01:04]} Kf4 {[%emt 0:00:04]} 56. b4 {[%emt 0:00:08]} h4 {[%emt 0:02:23]} 57. b5 {[%emt 0:00:12]} Ra4 {[%emt 0:00:13]} 58. b6 {[%emt 0:00:30]} Ra6 {[%emt 0:01:03]} 59. Kc3 {[%emt 0:00:44]} h3 {[%emt 0:00:15]} 60. Kd3 {[%emt 0:00:31]} Ra3+ {[%emt 0:01:04]} 61. c3 {[%emt 0:00:15]} g5 {[%emt 0:00:17]} 62. b7 {[%emt 0:02:15] Ke4+} 1-0

[Event "Bionext Festival 2019"]
[Site "Chihuahua"]
[Date "2019.11.30"]
[Round "3.6"]
[White "Tello Chavez, Isaac Valent"]
[Black "Gonzalez Estrada, Jesus Yo"]
[Result "1-0"]
[ECO "A24"]
[WhiteElo "2274"]
[BlackElo "1891"]
[Annotator "NA"]
[PlyCount "123"]
[EventDate "2019.11.30"]
[EventType "swiss"]
[EventCountry "MEX"]
[SourceTitle "playchess.com"]
[Source "ChessBase"]
[SourceQuality "1"]
[TimeControl "5400+30"]

1. c4 {[%emt 1:30:30]} g6 {[%emt 1:30:30]} 2. g3 {[%emt 0:00:30]} Bg7 {[%emt 0:00:30]} 3. Bg2 {[%emt 0:00:30]} c5 {[%emt 0:00:30]} 4. Nc3 {[%emt 0:00:30]} Nf6 {[%emt 0:00:30]} 5. e3 {[%emt 0:00:30]} O-O {[%emt 0:00:30]} 6. Nge2 {[%emt 0:00:30]} Nc6 {[%emt 0:00:30]} 7. O-O {[%emt 0:00:30]} d6 {[%emt 0:00:30]} 8. d3 {[%emt 0:00:30]} e5 {[%emt 0:00:30]} 9. a3 {[%emt 0:00:30]} Be6 {[%emt 0:00:30]} 10. Nd5 {[%emt 0:00:30]} Qd7 {[%emt 0:00:30]} 11. Re1 {[%emt 0:00:30]} Bh3 {[%emt 0:00:30]} 12. Bh1 {[%emt 0:00:30]} Rac8 {[%emt 0:00:30]} 13. Nec3 {[%emt 0:00:30]} Nxd5 {[%emt 0:00:30]} 14. Nxd5 {[%emt 0:00:30]} Ne7 {[%emt 0:00:30]} 15. Rb1 {[%emt 0:00:30]} Nxd5 {[%emt 0:00:30]} 16. Bxd5 {[%emt 0:00:30]} Be6 {[%emt 0:00:30]} 17. Qf3 {[%emt 0:00:30]} Bxd5 {[%emt 0:00:30]} 18. Qxd5 {[%emt 0:00:30]} Qc6 {[%emt 0:00:30]} 19. e4 {[%emt 0:00:30]} Qxd5 {[%emt 0:00:30]} 20. exd5 {[%emt 0:00:30]} f5 {[%emt 0:00:30]} 21. Kg2 {[%emt 0:00:30]} Rf7 {[%emt 0:00:30]} 22. Bd2 {[%emt 0:00:30]} Re7 {[%emt 0:00:30]} 23. f3 {[%emt 0:00:30]} Kf7 {[%emt 0:00:30]} 24. b4 {[%emt 0:00:30]} cxb4 {[%emt 0:00:30]} 25. Bxb4 {[%emt 0:00:30]} Rd7 {[%emt 0:00:30]} 26. a4 Bf6 {[%emt 0:00:30]} 27. Re2 {[%emt 0:01:00]} Bd8 {[%emt 0:00:30]} 28. Be1 {[%emt 0:00:30]} Bb6 {[%emt 0:00:30]} 29. Reb2 {[%emt 0:00:30]} Rcc7 {[%emt 0:00:30]} 30. Bf2 {[%emt 0:00:30]} Bd4 {[%emt 0:00:30]} 31. Re2 {[%emt 0:00:30]} Re7 {[%emt 0:00:30]} 32. g4 {[%emt 0:00:30]} Bxf2 {[%emt 0:00:30]} 33. Kxf2 {[%emt 0:00:30]} Rc5 {[%emt 0:00:30]} 34. Ke3 {[%emt 0:00:30]} Ra5 {[%emt 0:00:30]} 35. Ra2 {[%emt 0:00:30]} Rc5 {[%emt 0:00:30]} 36. h4 {[%emt 0:00:30]} e4 {[%emt 0:00:30]} 37. fxe4 {[%emt 0:00:30]} fxe4 {[%emt 0:00:30]} 38. g5 {[%emt 0:00:30]} exd3+ {[%emt 0:00:30]} 39. Kxd3 {[%emt 0:00:30]} Kg7 {[%emt 0:00:30]} 40. Rf2 {[%emt 0:00:30]} Rec7 {[%emt 0:00:30]} 41. Rf4 {[%emt 0:00:30]} Ra5 {[%emt 0:00:30]} 42. Rb4 h6 {[%emt 0:00:30]} 43. Rf6 {[%emt 0:01:00]} hxg5 {[%emt 0:00:30]} 44. hxg5 {[%emt 0:00:30]} Rd7 {[%emt 0:00:30]} 45. Kd4 {[%emt 0:00:30]} Ra6 {[%emt 0:00:30]} 46. Re6 {[%emt 0:00:30]} Ra5 {[%emt 0:00:30]} 47. Re8 {[%emt 0:00:30]} Rc5 {[%emt 0:00:30]} 48. Rb8 {[%emt 0:00:30]} b6 {[%emt 0:00:30]} 49. Kd3 {[%emt 0:00:30]} Rcc7 {[%emt 0:00:30]} 50. Rb1 {[%emt 0:00:30]} Rf7 {[%emt 0:00:30]} 51. Rd8 {[%emt 0:00:30]} Rf3+ {[%emt 0:00:30]} 52. Ke2 {[%emt 0:00:30]} Rf5 {[%emt 0:00:30]} 53. Rxd6 {[%emt 0:00:30]} Rxg5 {[%emt 0:00:30]} 54. Rc1 {[%emt 0:00:30]} Rg4 {[%emt 0:00:30]} 55. Kd3 {[%emt 0:00:30]} Rg3+ {[%emt 0:00:30]} 56. Kd4 {[%emt 0:00:30]} Rg4+ {[%emt 0:00:30]} 57. Ke5 {[%emt 0:00:30]} Rgxc4 58. Rxc4 Rxc4 59. Rd7+ {[%emt 0:01:00]} Kf8 {[%emt 0:01:30]} 60. Rxa7 {[%emt 0:00:30]} g5 {[%emt 0:00:30]} 61. d6 {[%emt 0:00:30]} g4 {[%emt 0:00:30]} 62. Ra8+ {[%emt 0:00:30]} 1-0

[Event "Bionext Festival 2019"]
[Site "Chihuahua"]
[Date "2019.11.30"]
[Round "3.8"]
[White "Rubio Ramos, Jorge Yadir"]
[Black "Pina Gonzalez, Jose Antonio"]
[Result "1/2-1/2"]
[ECO "D00"]
[WhiteElo "1819"]
[BlackElo "2170"]
[Annotator "NA"]
[PlyCount "72"]
[EventDate "2019.11.30"]
[EventType "swiss"]
[EventCountry "MEX"]
[SourceTitle "playchess.com"]
[Source "ChessBase"]
[SourceQuality "1"]
[TimeControl "5400+30"]

1. d4 {[%emt 1:30:30]} Nf6 {[%emt 1:30:30]} 2. Bg5 {[%emt 0:00:30]} e6 {[%emt 0:00:30]} 3. Nd2 {[%emt 0:00:30]} d5 {[%emt 0:00:30]} 4. e3 {[%emt 0:00:30]} c5 {[%emt 0:00:30]} 5. c3 {[%emt 0:00:30]} Be7 {[%emt 0:00:30]} 6. Bd3 {[%emt 0:00:30]} Nc6 {[%emt 0:00:30]} 7. f4 {[%emt 0:00:30]} cxd4 {[%emt 0:00:30]} 8. exd4 {[%emt 0:00:30]} Qc7 {[%emt 0:00:30]} 9. Ngf3 {[%emt 0:00:30]} Bd6 {[%emt 0:00:30]} 10. Ne5 {[%emt 0:00:30]} Bxe5 {[%emt 0:00:30]} 11. fxe5 {[%emt 0:00:30]} Nxe5 {[%emt 0:00:30]} 12. Bb5+ {[%emt 0:00:30]} Nc6 {[%emt 0:00:30]} 13. O-O {[%emt 0:00:30]} Ng8 {[%emt 0:00:30]} 14. Qh5 {[%emt 0:00:30]} g6 {[%emt 0:00:30]} 15. Qf3 {[%emt 0:00:30]} f5 {[%emt 0:00:30]} 16. Bf4 {[%emt 0:00:30]} Qd8 {[%emt 0:00:30]} 17. Rae1 {[%emt 0:00:30]} Nf6 {[%emt 0:00:30]} 18. Bh6 {[%emt 0:00:30]} Ng4 {[%emt 0:00:30]} 19. Bg7 {[%emt 0:00:30]} Rg8 {[%emt 0:00:30]} 20. Be5 {[%emt 0:00:30]} Ngxe5 {[%emt 0:00:30]} 21. Rxe5 {[%emt 0:00:30]} Kf7 {[%emt 0:00:30]} 22. Bxc6 {[%emt 0:00:30]} bxc6 {[%emt 0:00:30]} 23. Nb3 {[%emt 0:00:30]} Rb8 {[%emt 0:00:30]} 24. Rfe1 {[%emt 0:00:30]} Re8 {[%emt 0:00:30]} 25. Qf2 {[%emt 0:00:30]} h5 {[%emt 0:00:30]} 26. Nc5 {[%emt 0:00:30]} Qg5 {[%emt 0:00:30]} 27. b4 {[%emt 0:00:30]} h4 {[%emt 0:00:30]} 28. h3 {[%emt 0:00:30]} Ra8 {[%emt 0:00:30]} 29. Qe2 {[%emt 0:00:30]} Qg3 {[%emt 0:00:30]} 30. Qd2 {[%emt 0:00:30]} a5 {[%emt 0:00:30]} 31. Qh6 {[%emt 0:00:30]} Qxc3 {[%emt 0:00:30]} 32. Qh7+ {[%emt 0:00:30]} Kf6 {[%emt 0:00:30]} 33. Qxh4+ {[%emt 0:00:30]} Kf7 {[%emt 0:00:30]} 34. Qh7+ {[%emt 0:00:30]} Kf6 {[%emt 0:00:30]} 35. Qh4+ {[%emt 0:00:30]} Kf7 {[%emt 0:00:30]} 36. Qh7+ {[%emt 0:00:30]} Kf6 {[%emt 0:00:30]} 1/2-1/2

[Event "Bionext Festival 2019"]
[Site "Chihuahua"]
[Date "2019.11.30"]
[Round "3.9"]
[White "Valle Caballero, Julio Cesar"]
[Black "Castillo Coca, Mairebis"]
[Result "0-1"]
[ECO "E72"]
[WhiteElo "1661"]
[BlackElo "2134"]
[Annotator "NA"]
[PlyCount "89"]
[EventDate "2019.11.30"]
[EventType "swiss"]
[EventCountry "MEX"]
[SourceTitle "playchess.com"]
[Source "ChessBase"]
[SourceQuality "1"]
[TimeControl "5400+30"]

1. c4 {[%emt 1:30:30]} Nf6 {[%emt 1:30:30]} 2. Nc3 {[%emt 0:00:30]} g6 {[%emt 0:00:30]} 3. e4 {[%emt 0:00:30]} d6 {[%emt 0:00:30]} 4. d4 {[%emt 0:00:30]} Bg7 {[%emt 0:00:30]} 5. g3 {[%emt 0:00:30]} O-O {[%emt 0:00:30]} 6. Bg2 {[%emt 0:00:30]} c6 {[%emt 0:00:30]} 7. Nge2 {[%emt 0:00:30]} Nbd7 {[%emt 0:00:30]} 8. O-O {[%emt 0:00:30]} e5 {[%emt 0:00:30]} 9. d5 {[%emt 0:00:30]} c5 {[%emt 0:00:30]} 10. Bg5 {[%emt 0:00:30]} h6 {[%emt 0:00:30]} 11. Bxf6 {[%emt 0:00:30]} Nxf6 {[%emt 0:00:30]} 12. a3 {[%emt 0:00:30]} Bg4 {[%emt 0:00:30]} 13. h3 {[%emt 0:00:30]} Bd7 14. Kh2 {[%emt 0:00:30]} a6 {[%emt 0:01:00]} 15. a4 {[%emt 0:00:30]} b6 {[%emt 0:00:30]} 16. Qd3 {[%emt 0:00:30]} Nh5 {[%emt 0:00:30]} 17. f4 {[%emt 0:00:30]} exf4 {[%emt 0:00:30]} 18. Nxf4 {[%emt 0:00:30]} Nxf4 {[%emt 0:00:30]} 19. gxf4 {[%emt 0:00:30]} g5 {[%emt 0:00:30]} 20. f5 {[%emt 0:00:30]} Be5+ {[%emt 0:00:30]} 21. Kh1 {[%emt 0:00:30]} Qf6 {[%emt 0:00:30]} 22. Ra2 {[%emt 0:00:30]} Rab8 {[%emt 0:00:30]} 23. Nd1 {[%emt 0:00:30]} b5 {[%emt 0:00:30]} 24. axb5 {[%emt 0:00:30]} axb5 25. b3 {[%emt 0:00:30]} bxc4 {[%emt 0:01:00]} 26. bxc4 {[%emt 0:00:30]} Rb7 {[%emt 0:00:30]} 27. Ne3 {[%emt 0:00:30]} h5 {[%emt 0:00:30]} 28. Bf3 {[%emt 0:00:30]} Qh6 {[%emt 0:00:30]} 29. Rg2 {[%emt 0:00:30]} Rfb8 {[%emt 0:00:30]} 30. Rfg1 {[%emt 0:00:30]} Bf4 {[%emt 0:00:30]} 31. Bd1 {[%emt 0:00:30]} Kf8 {[%emt 0:00:30]} 32. Nf1 {[%emt 0:00:30]} Rb4 {[%emt 0:00:30]} 33. Ng3 {[%emt 0:00:30]} g4 {[%emt 0:00:30]} 34. Nxh5 {[%emt 0:00:30]} Qxh5 {[%emt 0:00:30]} 35. Rxg4 {[%emt 0:00:30]} Qh6 {[%emt 0:00:30]} 36. Qf3 {[%emt 0:00:30]} Be5 {[%emt 0:00:30]} 37. h4 {[%emt 0:00:30]} Rb2 {[%emt 0:00:30]} 38. Be2 {[%emt 0:00:30]} Rxe2 {[%emt 0:00:30]} 39. Qxe2 {[%emt 0:00:30]} Rb2 {[%emt 0:00:30]} 40. Qxb2 {[%emt 0:00:30]} Bxb2 {[%emt 0:00:30]} 41. Rb1 {[%emt 0:00:30]} Be5 {[%emt 0:00:30]} 42. Rb8+ {[%emt 0:00:30]} Be8 {[%emt 0:00:30]} 43. Rxe8+ {[%emt 0:00:30]} Kxe8 {[%emt 0:00:30]} 44. Rg8+ {[%emt 0:00:30]} Kd7 {[%emt 0:00:30]} 45. Rg5 {[%emt 0:00:30]} 0-1

[Event "Bionext Festival 2019"]
[Site "Chihuahua"]
[Date "2019.11.30"]
[Round "3.11"]
[White "Martinez Castaneda, Allan"]
[Black "Vargas Miranda, Diego"]
[Result "1-0"]
[ECO "B04"]
[WhiteElo "2045"]
[BlackElo "1892"]
[Annotator "NA"]
[PlyCount "45"]
[EventDate "2019.11.30"]
[EventType "swiss"]
[EventCountry "MEX"]
[SourceTitle "playchess.com"]
[Source "ChessBase"]
[SourceQuality "1"]
[TimeControl "5400+30"]

1. e4 {[%emt 1:30:30]} Nf6 {[%emt 1:30:30]} 2. e5 {[%emt 0:00:30]} Nd5 {[%emt 0:00:30]} 3. d4 {[%emt 0:00:30]} d6 {[%emt 0:00:30]} 4. Nf3 {[%emt 0:00:30]} Bf5 {[%emt 0:00:30]} 5. Bd3 {[%emt 0:00:30]} Bxd3 {[%emt 0:00:30]} 6. Qxd3 {[%emt 0:00:30]} c6 {[%emt 0:00:30]} 7. e6 {[%emt 0:00:30]} fxe6 {[%emt 0:00:30]} 8. Ng5 {[%emt 0:00:30]} Nf6 {[%emt 0:00:30]} 9. O-O {[%emt 0:00:30]} Na6 {[%emt 0:00:30]} 10. Qb3 {[%emt 0:00:30]} Qc8 {[%emt 0:00:30]} 11. Nxe6 {[%emt 0:00:30]} Nc7 {[%emt 0:00:30]} 12. Ng5 {[%emt 0:00:30]} d5 {[%emt 0:00:30]} 13. Re1 {[%emt 0:00:30]} h6 {[%emt 0:00:30]} 14. Nf3 {[%emt 0:00:30]} e6 {[%emt 0:00:30]} 15. Ne5 {[%emt 0:00:30]} Bd6 {[%emt 0:00:30]} 16. Ng6 {[%emt 0:00:30]} Rg8 {[%emt 0:00:30]} 17. Bf4 {[%emt 0:00:30]} Bxf4 {[%emt 0:00:30]} 18. Nxf4 {[%emt 0:00:30]} g5 {[%emt 0:00:30]} 19. Nd3 {[%emt 0:00:30]} Kf7 {[%emt 0:00:30]} 20. Nd2 {[%emt 0:00:30]} Rb8 {[%emt 0:00:30]} 21. Re2 {[%emt 0:00:30]} Kg7 {[%emt 0:00:30]} 22. f4 {[%emt 0:00:30]} gxf4 {[%emt 0:00:30]} 23. Nxf4 {[%emt 0:00:30]} 1-0